[Event "Grand Prix Romania 1st Stage 2024"]
[Site "Bucuresti"]
[Date "2024.03.23"]
[Round "4.10"]
[White "Banzea, Alexandru-Bogdan"]
[Black "Brunello, Sabino"]
[Result "1-0"]
[ECO "D00"]
[WhiteElo "2394"]
[BlackElo "2515"]
[Annotator "TA"]
[PlyCount "105"]
[EventDate "2024.03.20"]
[EventType "swiss"]
[EventCountry "ROU"]
[SourceTitle "playchess.com"]
[Source "ChessBase"]
[SourceQuality "1"]
[TimeControl "900+5"]

{[%evp 9,105,0,50,12,117,103,100,114,195,204,209,192,220,162,147,111,201,210,214,221,216,126,182,179,225,106,138,7,34,22,193,204,213,198,200,200,200,197,337,343,347,300,430,250,275,-245,16,11,131,-206,0,0,0,0,27,-8,0,0,0,0,0,0,0,0,0,0,507,479,525,514,551,460,548,546,551,551,551,551,551,551,551,0,551,551,551,537,528,508,804,804,804,804,796,796,789,768,698,657]} 1. d4 {[%emt 0:00:04]} Nf6 {[%emt 0:00:01]} 2. Nc3 {[%emt 0:00:02]} d5 {[%emt 0:00:04]} 3. Bf4 {[%emt 0:00:02]} g6 {[%emt 0:00:07]} 4. e3 {[%emt 0:00:20]} Bg7 {[%emt 0:00:02]} 5. h4 {[%emt 0:00:30]} O-O {[%emt 0:00:25]} ({Better is} 5... h5 $11) 6. h5 $1 $14 {[%emt 0:00:03]} Nxh5 {[%emt 0:00:03]} (6... c5 $11) 7. Rxh5 $16 {[%emt 0:00:07]} gxh5 {[%emt 0:00:02]} 8. Qxh5 {[%emt 0:00:05][%cal Og1f3] White is better.} e6 {[%emt 0:00:23]} (8... Nd7 $16 {was necessary.}) 9. Bd3 {[%emt 0:00:03][%csl Gd3][%cal Rh5h7][%mdl 1024] White has strong compensation.} f5 {[%emt 0:00:04][%cal Oc7c5]} 10. Nf3 {[%emt 0:00:20] Threatens to win with 0-0-0.} Nd7 {[%emt 0:00:21]} 11. O-O-O {[%emt 0:00:45] Rh1 is the strong threat.} Nf6 {[%emt 0:00:08]} 12. Qh2 {[%emt 0:00:48][%cal Od1h1] White has more active pieces.} c5 {[%emt 0:00:58]} 13. Ne5 $18 {[%emt 0:01:32]} (13. dxc5 Ng4 14. Qg3 Qe8 $17) 13... c4 {[%emt 0:01:14]} 14. Be2 {[%emt 0:00:02]} b5 {[%emt 0:01:20]} 15. Nxb5 {[%emt 0:00:09] Excellent horsemanship.} (15. Rh1 $1 $18) 15... Qb6 {[%emt 0:01:18]} (15... Bd7 $16) 16. Nc3 $1 {[%emt 0:00:24]} Ba6 {[%emt 0:01:57]} (16... Bd7 $142) 17. Rh1 {[%emt 0:02:13]} (17. Na4 $18 {and White stays clearly on top.} Qa5 18. Nc3) 17... Rab8 $16 {[%emt 0:00:17]} 18. f3 {[%emt 0:00:21] Dancing on a razor blade.} (18. Na4 Qb5 19. b3 Qb4 $11) ({White must play} 18. Nd1 $1 $16 {[%cal Oe5d7] Hoping for Nd7!} Rb7 (18... c3 $2 19. Nd7 $18) 19. Kb1 (19. g4 c3 $11)) 18... Qxb2+ {[%emt 0:01:07]} 19. Kd2 {[%emt 0:00:01]} Rb3 $2 {[%emt 0:00:02]} 20. axb3 $18 {[%emt 0:04:36]} cxb3 {[%emt 0:00:01]} 21. Bxa6 {[%emt 0:00:40]} Qxc2+ {[%emt 0:01:35]} 22. Ke1 {[%emt 0:00:02]} Qxc3+ {[%emt 0:00:27]} 23. Kf2 {[%emt 0:00:03] Black must now prevent Bh6.} Qc2+ {[%emt 0:01:39]} (23... b2 $142) 24. Kg3 $1 {[%emt 0:00:43]} b2 {[%emt 0:00:20]} 25. Bd3 {[%emt 0:00:13]} Qd2 {[%emt 0:00:11]} (25... Qc3 {keeps fighting.} 26. Bh6 Bxh6 27. Qxh6 Qc7 28. Qg5+ Qg7 29. Qxg7+ Kxg7) 26. Bg5 {[%emt 0:01:41]} (26. e4 $142 Qc3 27. exf5 Qxd4 28. fxe6) 26... h5 {[%emt 0:00:43]} 27. Qg1 $4 {[%emt 0:00:58][%mdl 8192]} (27. Qh4 $18) 27... Rc8 $2 {[%emt 0:00:25]} (27... Nh7 $19 28. Bf4 Bxe5 29. Bxe5 Qxd3) 28. Qe1 $11 {[%emt 0:00:05]} Qc1 {[%emt 0:00:50]} (28... Ne4+ $11 {keeps the balance.} 29. Bxe4 Bxe5+ 30. dxe5 Qxe1+ 31. Rxe1 dxe4) 29. Kh4 $2 {[%emt 0:00:26][%mdl 8192] [#]} (29. Qb4 $1 $16 {[%cal Rb4e7] And now Qe7! would win.} Nd7 (29... Qxh1 $2 30. Qe7 $18) 30. Qd6 (30. Rxh5 Nxe5 31. dxe5 Bxe5+ 32. Bf4 Qxe3 $14)) 29... Qxe1+ $2 {[%emt 0:00:06]} ({Black should try} 29... Ne4 $1 $19 {[%cal Re4f2]} 30. fxe4 Bxe5 31. exd5 (31. dxe5 $2 {is the wrong capture.} dxe4 32. Kxh5 exd3 $19) (31. exf5 $2 Qxe1+ 32. Rxe1 Rc1 $19) (31. Kxh5 $2 dxe4 32. Bxe4 fxe4 $19) 31... Qxe1+ 32. Rxe1 Rc1 33. dxe6 Rxe1 34. dxe5 b1=Q (34... b1=R 35. Kxh5 Rb7 36. e7 $11) 35. Bxb1 Rh1+ 36. Kg3 Rxb1) 30. Rxe1 {[%emt 0:00:02]} Rc1 {[%emt 0:00:05]} 31. Re2 {[%emt 0:00:05]} Nh7 {[%emt 0:00:05]} 32. f4 {[%emt 0:00:13]} Rh1+ {[%emt 0:00:18]} (32... b1=R {simplifies} 33. Bxb1 Rxb1 34. Ra2 Rh1+) 33. Kg3 {[%emt 0:00:01]} Nxg5 {[%emt 0:00:02]} 34. Rxb2 {[%emt 0:00:06]} h4+ {[%emt 0:00:07]} 35. Kf2 {[%emt 0:00:03]} Bxe5 {[%emt 0:00:22]} 36. dxe5 {[%emt 0:00:09][%mdl 4096] Endgame. KRB-KRN} Nh3+ {[%emt 0:00:10]} 37. Ke2 {[%emt 0:00:06] Rb8+ would now be deadly.} (37. Kf3 $5 Ng1+ $8 38. Kf2 Nh3+ 39. Ke2 Ng1+ 40. Kf2 Nh3+ $11) 37... Rg1 $2 {[%emt 0:00:09][%mdl 8192] Black is now going downhill.} 38. Rb8+ $18 {[%emt 0:00:02]} (38. gxh3 $2 {loses.} Rg2+ 39. Kd1 Rxb2 $19) 38... Kg7 {[%emt 0:00:02]} 39. gxh3 {[%emt 0:00:01] KRB-KR} Rg2+ {[%emt 0:00:00]} 40. Kf3 {[%emt 0:00:05]} Rg3+ {[%emt 0:00:01]} 41. Kf2 {[%emt 0:00:01]} Rxh3 {[%emt 0:00:00]} 42. Rb7+ {[%emt 0:00:04]} Kf8 {[%emt 0:00:04]} 43. Rxa7 {[%emt 0:00:09]} Rh2+ {[%emt 0:00:01]} 44. Kf3 {[%emt 0:00:04]} Rh3+ {[%emt 0:00:01]} 45. Kf2 {[%emt 0:00:06]} Rh2+ {[%emt 0:00:07]} 46. Kf1 {[%emt 0:00:06] White is clearly winning.} Rh3 {[%emt 0:00:04]} 47. Rh7 {[%emt 0:00:09]} Rxe3 {[%emt 0:00:02]} 48. Be2 {[%emt 0:00:05]} d4 {[%emt 0:00:14] [#]} (48... h3 $142 49. Kf2 Rb3) 49. Kf2 $1 {[%emt 0:00:05]} ({Weaker is} 49. Rxh4 d3 50. Bh5 Re4 $14) 49... h3 {[%emt 0:00:13]} 50. Bf3 {[%emt 0:00:03]} Ra3 {[%emt 0:00:01]} 51. Rxh3 {[%emt 0:00:02]} Ra2+ {[%emt 0:00:02]} 52. Kg3 {[%emt 0:00:06]} d3 {[%emt 0:00:01]} 53. Rh2 {[%emt 0:00:06] Weighted Error Value: White=0.55/Black=0.55.  Loses game:     	White=1     	Black=2      Missed win:     	White=1     	Black=2      Mistake:       	White=4     	Black=9      Inaccurate:     	White=1     	Black=2      OK:         	White=16    	Black=18     Best:        	White=6     	Black=2      Strong:       	White=3     	---} 1-0

[Event "Grand Prix Romania 1st Stage 2024"]
[Site "Bucuresti"]
[Date "2024.03.23"]
[Round "4.11"]
[White "Sargsyan, Shant"]
[Black "Ben Ari, Yannay"]
[Result "1-0"]
[ECO "B40"]
[WhiteElo "2637"]
[BlackElo "2434"]
[Annotator "TA"]
[PlyCount "195"]
[EventDate "2024.03.20"]
[EventType "swiss"]
[EventCountry "ROU"]
[SourceTitle "playchess.com"]
[Source "ChessBase"]
[SourceQuality "1"]
[TimeControl "900+5"]

{[%evp 9,195,4,12,16,14,4,8,-16,-18,-14,-19,-33,0,-4,0,-17,-19,-31,-6,-57,-59,-85,-66,-66,0,0,0,0,-7,-53,0,0,0,0,0,0,0,0,0,0,0,0,0,0,0,0,56,61,91,92,91,91,91,96,101,93,93,94,97,99,167,99,105,105,105,105,167,104,104,104,104,104,104,104,104,104,105,105,105,105,105,105,105,105,134,134,134,134,134,134,134,134,134,0,134,134,134,134,134,134,134,85,134,85,134,85,85,85,85,46,134,134,134,134,134,134,134,134,134,134,134,134,134,134,134,134,134,87,134,95,134,70,134,134,134,70,134,134,134,120,120,120,129,129,159,159,159,159,160,167,1378,1244,1366,1355,1266,87,87,87,87,87,1869,87,87,87,1911,1510,29976,29977,29976,29978,29978,29979,29979,29979,29976,29976,29988,29989,29990,29990,29990,29991,29991,29992,29992,29989,29989,29990]} 1. e4 {[%emt 0:00:02]} c5 {[%emt 0:00:01]} 2. Nf3 {[%emt 0:00:02]} e6 {[%emt 0:00:01]} 3. g3 {[%emt 0:00:08]} Nc6 {[%emt 0:00:04]} 4. Bg2 {[%emt 0:00:03]} Nf6 {[%emt 0:00:18]} 5. Qe2 {[%emt 0:00:02]} e5 {[%emt 0:00:11]} 6. O-O {[%emt 0:00:05]} Be7 {[%emt 0:00:04]} 7. c3 {[%emt 0:00:26][%cal Od2d4]} O-O {[%emt 0:00:05]} 8. Rd1 {[%emt 0:00:08] The position is equal.} Re8 {[%emt 0:01:56]} 9. Na3 {[%emt 0:00:15]} Bf8 {[%emt 0:00:14]} 10. d3 {[%emt 0:00:22]} h6 {[%emt 0:00:03] Prevents Bg5} 11. Nc4 {[%emt 0:00:22]} d6 {[%emt 0:00:20][%cal Bd7d6,Bd6d5,Bd5d4][%mdl 32]} 12. a4 {[%emt 0:00:06]} Be6 {[%emt 0:00:19]} 13. Ne3 {[%emt 0:00:35]} d5 {[%emt 0:00:21]} 14. h3 {[%emt 0:02:04]} (14. exd5 $11 Nxd5 15. Nc4) 14... d4 $15 {[%emt 0:02:08]} (14... dxe4 $6 15. dxe4 Nd7 16. Nd5 $11) 15. Nf5 {[%emt 0:00:16]} Bxf5 {[%emt 0:00:46]} 16. exf5 {[%emt 0:00:07]} e4 {[%emt 0:00:04]} (16... Qd7 $15) 17. dxe4 $11 {[%emt 0:00:33]} Nxe4 {[%emt 0:00:06] Excellent horsemanship.} 18. Qc2 {[%emt 0:01:06][%cal Of3d4]} Qf6 {[%emt 0:00:25]} 19. Nxd4 {[%emt 0:01:26]} Nxg3 {[%emt 0:02:27]} (19... Nxf2 $1 $15 20. Qxf2 cxd4) 20. Nxc6 {[%emt 0:01:31]} Ne2+ {[%emt 0:00:07]} 21. Kf1 $1 {[%emt 0:00:22][%cal Oc1d2]} bxc6 {[%emt 0:01:22]} 22. Be3 {[%emt 0:02:07]} Ng3+ {[%emt 0:00:25]} 23. fxg3 {[%emt 0:00:00]} Rxe3 {[%emt 0:00:03]} 24. Qf2 $1 $36 {[%emt 0:00:02][%mdl 2048] White has some pressure.} Rae8 {[%emt 0:00:21] aiming for ...c4.} 25. Re1 {[%emt 0:00:13]} Rxe1+ {[%emt 0:01:44]} 26. Rxe1 {[%emt 0:00:03]} Rxe1+ {[%emt 0:00:02]} 27. Kxe1 {[%emt 0:00:08][%mdl 4096] Endgame. KQB-KQB} Bd6 {[%emt 0:00:47]} (27... Qd6 $11) 28. g4 $14 {[%emt 0:00:26]} h5 {[%emt 0:00:36]} 29. Kd1 {[%emt 0:00:42]} hxg4 {[%emt 0:00:12]} 30. hxg4 {[%emt 0:00:01]} Qg5 {[%emt 0:00:38]} 31. Qe2 {[%emt 0:00:08]} Qe7 {[%emt 0:00:36]} 32. Bxc6 {[%emt 0:02:17]} Qxe2+ {[%emt 0:00:19]} 33. Kxe2 $16 {[%emt 0:00:01] KB-KB} Kf8 {[%emt 0:00:02]} 34. Kd3 {[%emt 0:00:22]} Ke7 {[%emt 0:00:01]} (34... Bf4 $16) 35. Bd5 {[%emt 0:00:42]} (35. Kc4 $18) 35... f6 {[%emt 0:00:09]} 36. Kc4 {[%emt 0:00:03] Kb5 is the strong threat.} Kd7 {[%emt 0:00:03]} 37. Be4 {[%emt 0:00:19]} Kc7 {[%emt 0:00:18]} (37... Be7 $16 38. Kd5 a5) 38. Kd5 {[%emt 0:00:01]} (38. a5 $1 $18) 38... a5 {[%emt 0:00:20]} 39. Bd3 {[%emt 0:00:04]} Bf8 {[%emt 0:00:05]} 40. Be2 {[%emt 0:00:26]} Bd6 {[%emt 0:00:01]} 41. Bb5 {[%emt 0:00:01]} Bf8 {[%emt 0:00:02]} 42. Ke6 {[%emt 0:00:20] Black must now prevent Kf7.} Bd6 {[%emt 0:00:01]} 43. Kf7 {[%emt 0:00:02]} Bf4 {[%emt 0:00:02]} 44. Kxg7 {[%emt 0:00:01]} Bg5 {[%emt 0:00:01]} 45. Kf8 {[%emt 0:00:12]} Kd6 {[%emt 0:00:25]} 46. Kf7 {[%emt 0:00:01]} Kc7 {[%emt 0:00:07]} 47. Ke6 {[%emt 0:00:05]} Kb6 {[%emt 0:00:01]} 48. Kd6 {[%emt 0:00:09]} Bf4+ {[%emt 0:00:03]} 49. Ke7 {[%emt 0:00:02]} Bg5 {[%emt 0:00:01]} 50. Kd7 {[%emt 0:00:08]} Bc1 {[%emt 0:00:05]} 51. Ke6 {[%emt 0:00:01]} Bg5 {[%emt 0:00:02]} 52. Bf1 {[%emt 0:00:05]} Bh4 {[%emt 0:00:03]} 53. Kd5 {[%emt 0:00:08]} Bg5 {[%emt 0:00:02]} 54. Kc4 {[%emt 0:00:01]} Bc1 {[%emt 0:00:11]} 55. Kb3 {[%emt 0:00:08]} (55. Be2 $142) 55... Bg5 {[%emt 0:00:03]} (55... Kc6 $142 56. Bg2+ Kd6) 56. Kc2 {[%emt 0:00:04]} (56. Bg2 $142) 56... Bf4 {[%emt 0:00:32]} (56... Kc7 $142 57. Bg2 Kd6) 57. Bc4 ({Better is} 57. Kd3) 57... Bg5 {[%emt 0:00:00]} 58. Kd3 {[%emt 0:00:04]} Bc1 {[%emt 0:00:00]} 59. Ke4 {[%emt 0:00:14]} Bg5 {[%emt 0:00:00]} (59... Bxb2 $14 60. g5 fxg5) 60. Kd5 {[%emt 0:00:02]} Bc1 {[%emt 0:00:00]} 61. Ke6 {[%emt 0:00:05]} Bg5 {[%emt 0:00:00]} 62. Bd5 {[%emt 0:00:05]} Bh4 {[%emt 0:00:00]} 63. Be4 {[%emt 0:00:06]} Bg5 {[%emt 0:00:00]} 64. Bf3 {[%emt 0:00:00]} Bh4 {[%emt 0:00:00]} 65. Bg2 {[%emt 0:00:01]} Bg5 {[%emt 0:00:00]} 66. Kd5 {[%emt 0:00:10]} Bc1 {[%emt 0:00:00]} 67. b3 {[%emt 0:00:10]} Bd2 {[%emt 0:00:00]} 68. Kc4 {[%emt 0:00:02]} (68. Bf3 $142) 68... Bg5 {[%emt 0:00:06]} ({Black should play} 68... Kc7) 69. Bf1 {[%emt 0:00:01]} Bd2 {[%emt 0:00:01]} 70. Be2 {[%emt 0:00:01]} ({White should try} 70. Kd5 $1 $16) 70... Bg5 {[%emt 0:00:02]} (70... Kc6 $14) 71. Bd1 {[%emt 0:00:02]} Bd2 {[%emt 0:00:02]} 72. Bc2 {[%emt 0:00:02]} (72. Kd5 $16) 72... Bg5 {[%emt 0:00:02]} (72... Kc6 $14) 73. Kd5 {[%emt 0:00:01]} Bd2 {[%emt 0:00:02]} 74. c4 {[%emt 0:00:06]} Be3 {[%emt 0:00:18]} 75. Bd1 {[%emt 0:00:05]} Bd2 {[%emt 0:00:08] [#]} 76. b4 $1 {[%emt 0:00:11]} cxb4 {[%emt 0:00:20]} (76... axb4 77. a5+) 77. c5+ {[%emt 0:00:01]} Kc7 {[%emt 0:00:02] [#]} 78. Kc4 $1 {[%emt 0:00:10]} Be3 {[%emt 0:00:21][%cal Ob4b3]} 79. Kb5 {[%emt 0:00:02]} Bd4 $2 {[%emt 0:00:14]} (79... Bd2 80. Bb3 (80. Kxa5 Kc6 $11) 80... Be3) 80. Bb3 $1 $18 {[%emt 0:00:03]} (80. Kxa5 Bxc5 81. Kb5 Be7 $14) 80... Be3 {[%emt 0:00:04]} 81. Bd5 $1 {[%emt 0:00:08]} (81. Kxa5 Bxc5 82. Kb5 Bf8 $11) 81... Bd4 {[%emt 0:00:10] [#]} 82. c6 $2 {[%emt 0:00:07]} ({Less strong is} 82. Kxa5 Bxc5 83. Kb5 Be7 $14) (82. Be4 $1 $18 {[%cal Oc5c6] is the precise move to win. And now c6! would win.} b3 83. c6 (83. Kxa5 Bxc5 84. Kb5 Bd6 $11)) 82... Bb6 $16 {[%emt 0:00:08]} 83. Bc4 {[%emt 0:00:19] White is more active.} Be3 {[%emt 0:00:08]} 84. Bb3 {[%emt 0:00:01]} Bb6 $2 {[%emt 0:00:01][%mdl 8192]} (84... Bf2 $16) 85. Ba2 $2 {[%emt 0:00:00]} (85. Bd5 $18 Bf2 86. Kxa5) 85... Be3 {[%emt 0:00:05]} 86. Be6 {[%emt 0:00:03]} ({Don't play} 86. Kxa5 $6 Kxc6 87. Kxb4 Bd2+ 88. Kc4 Kb6 $16) 86... Bb6 $2 {[%emt 0:00:03][%mdl 8192]} (86... Bf2 $16) 87. Bd5 $18 {[%emt 0:00:03]} Be3 {[%emt 0:00:12]} 88. Kxa5 {[%emt 0:00:08] White mates.} b3 {[%emt 0:00:02][%cal Bb4b3,Bb3b2][%mdl 32]} 89. Kb5 {[%emt 0:00:05]} ({Weaker is} 89. Bxb3 Kxc6 90. Bc4 Kc5 $16) 89... b2 {[%emt 0:00:01]} 90. Be4 {[%emt 0:00:01]} Bf4 {[%emt 0:00:12]} 91. a5 {[%emt 0:00:04][%cal Ba4a5,Ba5a6][%mdl 32]} Bd2 {[%emt 0:00:04]} 92. a6 {[%emt 0:00:28]} Be3 {[%emt 0:00:01] [#]} 93. g5 $1 {[%emt 0:00:00][%cal Bg4g5,Bg5f6,Bf6f7][%mdl 32]} Kb8 {[%emt 0:00:10]} (93... b1=R+ 94. Bxb1) 94. gxf6 {[%emt 0:00:00]} Bd4 {[%emt 0:00:05]} 95. f7 {[%emt 0:00:00]} Bg7 {[%emt 0:00:02] [#]} 96. f6 $1 {[%emt 0:00:04]} Bh6 {[%emt 0:00:01]} (96... b1=R+ 97. Bxb1) 97. Kc4 {[%emt 0:00:05]} Bf8 {[%emt 0:00:12]} 98. Kd5 {[%emt 0:00:02] Weighted Error Value: White=0.13 (very precise) /Black=0.13 (very precise) .  Loses game:     	---       	Black=2      Missed win:     	White=1     	---        Mistake:       	White=10    	Black=12     Inaccurate:     	White=2     	Black=4      OK:         	White=26    	Black=29     Best:        	White=6     	Black=7      Strong:       	White=4     	---} 1-0

[Event "Grand Prix Romania 1st Stage 2024"]
[Site "Bucuresti"]
[Date "2024.03.23"]
[Round "4.12"]
[White "Soltanici, Ruslan"]
[Black "Chigaev, Maksim"]
[Result "0-1"]
[ECO "C70"]
[WhiteElo "2339"]
[BlackElo "2617"]
[Annotator "TA"]
[PlyCount "114"]
[EventDate "2024.03.20"]
[EventType "swiss"]
[EventCountry "ROU"]
[SourceTitle "playchess.com"]
[Source "ChessBase"]
[SourceQuality "1"]
[TimeControl "900+5"]

{[%evp 24,114,29,32,41,29,30,23,27,33,31,27,37,28,55,0,41,0,25,0,0,0,0,0,51,41,57,49,33,25,26,25,20,-5,-8,-8,0,0,0,0,0,0,0,-11,-9,-27,-25,-25,-38,-30,-23,-37,-16,-14,-16,-25,-16,-51,-88,-129,-162,-235,-235,-273,-273,-273,-281,-997,-1002,-730,-283,-989,-290,-4133,-484,-708,-396,-269,-102,-102,0,-1371,-1149,-825,-777,-29975,-29976,-29974,-29977,-29976,-29977,-29977,-29976]} 1. e4 {[%emt 0:00:03]} e5 {[%emt 0:00:04]} 2. Nf3 {[%emt 0:00:03]} Nc6 {[%emt 0:00:03]} 3. Bb5 {[%emt 0:00:03]} a6 {[%emt 0:00:01]} 4. Ba4 {[%emt 0:00:02]} b5 {[%emt 0:00:01]} 5. Bb3 {[%emt 0:00:02]} g6 {[%emt 0:00:02]} 6. c3 {[%emt 0:01:55] C70: Ruy Lopez: 3...a6 4 Ba4, Norwegian and Delayed Schliemann.} Bg7 {[%emt 0:00:02]} 7. d4 {[%emt 0:00:01]} exd4 {[%emt 0:00:07]} 8. cxd4 {[%emt 0:00:01]} Nge7 {[%emt 0:00:02]} 9. d5 {[%emt 0:00:26]} Na5 {[%emt 0:00:06]} 10. Bd2 {[%emt 0:00:02]} Nxb3 {[%emt 0:02:12] 10...c5 is not played anymore.} 11. Qxb3 {[%emt 0:00:02] 11.axb3 is not played anymore.} O-O {[%emt 0:00:22]} 12. Bc3 {[%emt 0:00:54]} Bxc3+ {[%emt 0:01:10]} 13. Nxc3 {[%emt 0:00:04]} d6 {[%emt 0:01:05]} 14. O-O {[%emt 0:00:16]} c5 {[%emt 0:00:02]} 15. dxc6 {[%emt 0:01:39]} Nxc6 {[%emt 0:03:39]} 16. Nd5 {[%emt 0:00:22]} Be6 {[%emt 0:00:11]} 17. Rfd1 {[%emt 0:02:17]} Rc8 {[%emt 0:00:01]} 18. Qa3 {[%emt 0:00:51]} a5 {[%emt 0:02:01]} 19. Nf4 {[%emt 0:01:15]} ({Better is} 19. Qd3 $14) 19... b4 {[%emt 0:03:17]} 20. Qd3 {[%emt 0:00:27]} Bg4 $146 {[%emt 0:00:23]} ({Predecessor:} 20... Qf6 21. Nxe6 Qxe6 22. h4 Ne5 23. Qxd6 Nxf3+ 24. gxf3 Rc2 25. b3 Qh3 26. Qf4 Rc3 {½-½ Van Foreest,L (2544)-Spyropoulos,N (2425) Paleochora op 14th 2021 (5)}) 21. Qxd6 {[%emt 0:00:36]} Bxf3 {[%emt 0:00:37]} 22. Qxd8 {[%emt 0:00:02]} (22. gxf3 {looks sharper.} Qg5+ 23. Kf1 Rfd8 24. Rd5) 22... Rfxd8 {[%emt 0:00:11]} 23. gxf3 {[%emt 0:00:15]} Ne5 {[%emt 0:00:23]} (23... Rxd1+ $1 $11 24. Rxd1 Ne5) 24. Nd5 $1 $14 {[%emt 0:01:14]} Kg7 {[%emt 0:00:12]} 25. f4 {[%emt 0:00:05]} Nc4 {[%emt 0:00:12]} 26. b3 {[%emt 0:00:10]} Nd6 {[%emt 0:00:13]} 27. f3 {[%emt 0:00:21]} Nb5 {[%emt 0:00:16]} 28. Rac1 {[%emt 0:00:14]} Nc3 {[%emt 0:00:18]} 29. Nxc3 $1 {[%emt 0:01:05]} Rxc3 {[%emt 0:00:01]} (29... Rxd1+ {feels hotter.} 30. Rxd1 bxc3 31. Kf2 c2) 30. Rxd8 {[%emt 0:01:31]} Rxc1+ {[%emt 0:00:02]} 31. Kf2 {[%emt 0:00:01]} (31. Kg2 Rc2+ 32. Kg3 Rxa2 $11) 31... Rc2+ {[%emt 0:00:01]} 32. Kg3 {[%emt 0:00:00]} Rxa2 {[%emt 0:00:02]} 33. Ra8 {[%emt 0:00:03]} Ra3 {[%emt 0:00:07]} 34. Ra7 {[%emt 0:00:37]} Rxb3 {[%emt 0:00:03]} 35. Rxa5 {[%emt 0:00:01]} Rb1 {[%emt 0:00:01]} 36. Rb5 {[%emt 0:00:10]} b3 {[%emt 0:00:01]} 37. Rb6 {[%emt 0:00:35]} b2 {[%emt 0:00:14]} 38. Kg2 {[%emt 0:00:09]} Kf8 {[%emt 0:00:01]} 39. Rb7 {[%emt 0:00:08]} Ke8 {[%emt 0:00:02]} 40. Kh3 {[%emt 0:00:16]} Kd8 {[%emt 0:00:06]} 41. Kg2 {[%emt 0:00:02]} Kc8 $1 {[%emt 0:00:01]} 42. Rb3 {[%emt 0:00:02]} (42. Rb4 $142) 42... Kc7 $19 {[%emt 0:00:01]} 43. e5 {[%emt 0:00:09]} Kc6 $1 {[%emt 0:00:08]} 44. Rb8 {[%emt 0:00:05]} Kd5 {[%emt 0:00:07]} 45. h3 $2 {[%emt 0:00:03]} (45. Rb4) 45... Kd4 {[%emt 0:00:14]} 46. Rb3 {[%emt 0:00:02]} Kc4 {[%emt 0:00:11]} 47. Rb7 {[%emt 0:00:01]} Kd3 $2 {[%emt 0:00:03]} (47... h6 48. Rb6 Kc3) 48. Rb8 $2 {[%emt 0:00:11]} (48. h4) 48... Ke3 {[%emt 0:00:05]} (48... h5 $142 {And now ...h4 would win.} 49. Rb6 h4) 49. Rb4 {[%emt 0:00:02]} (49. Rb6 $142 Kxf4 50. Rb4+ Kxe5 51. h4) 49... h6 {[%emt 0:00:09]} 50. h4 {[%emt 0:00:00]} h5 $2 {[%emt 0:00:00]} (50... Kd3 $19 {and Black stays clearly on top.} 51. Rb7 h5) 51. Rb7 $17 {[%emt 0:00:18] [#]} Kd4 {[%emt 0:00:13]} ({Of course not} 51... Kxf4 $6 52. Rxf7+ Kxe5 53. Rb7 $11) (51... Re1 $1 $17 52. Rb3+ Kxf4 53. Rxb2 Kxe5 (53... Rxe5 54. Rb7 $11)) 52. Rb8 $2 {[%emt 0:00:03][%mdl 8192]} (52. Rd7+ $11 Kc3 53. Rc7+ Kd3 54. Rd7+ Ke2 55. Rb7) 52... Kc3 {[%emt 0:00:07]} 53. Rc8+ {[%emt 0:00:01]} Kd3 {[%emt 0:00:02]} 54. Rb8 {[%emt 0:00:02]} Re1 {[%emt 0:00:11]} 55. Rxb2 {[%emt 0:00:03] [#]} Re2+ $1 {[%emt 0:00:01]} 56. Rxe2 {[%emt 0:00:05]} Kxe2 {[%emt 0:00:01]} 57. Kg3 {[%emt 0:00:15]} Ke3 {[%emt 0:00:01]} 0-1